[Event "MCR rapid mládeže 2023 U16"]
[Site "Harachov, Czech Republic"]
[Date "2023.09.10"]
[Round "7.2"]
[White "Roubal, Matyas"]
[Black "Sotek, Simon"]
[Result "1-0"]
[TimeControl "20min+5s/move"]
[WhiteElo "1911"]
[BlackElo "1526"]

1. e4 {[%clk 00:20:08]} {[%emt 00:00:02]} d5 {[%clk 00:20:09]} {[%emt
00:00:02]} 2. exd5 {[%clk 00:20:12]} Nf6 {[%clk 00:20:13]} 3. Bb5+ {[%clk
00:20:15]} {[%emt 00:00:02]} Bd7 {[%clk 00:20:16]} {[%emt 00:00:02]} 4. Be2
{[%clk 00:20:19]} {[%emt 00:00:01]} Nxd5 {[%clk 00:20:19]} {[%emt 00:00:02]} 5.
d4 {[%clk 00:20:22]} {[%emt 00:00:02]} e6 {[%clk 00:20:04]} {[%emt 00:00:19]} 6.
c4 {[%clk 00:19:51]} {[%emt 00:00:37]} Bb4+ {[%clk 00:17:29]} {[%emt 00:02:40]}
7. Bd2 {[%clk 00:19:49]} {[%emt 00:00:07]} Bxd2+ {[%clk 00:17:33]} {[%emt
00:00:02]} 8. Qxd2 {[%clk 00:19:46]} {[%emt 00:00:08]} Nf6 {[%clk 00:17:32]}
{[%emt 00:00:05]} 9. Nc3 {[%clk 00:19:43]} {[%emt 00:00:08]} Bc6 {[%clk
00:15:39]} {[%emt 00:01:59]} 10. Nf3 {[%clk 00:19:41]} {[%emt 00:00:07]} O-O
{[%clk 00:13:16]} {[%emt 00:02:28]} 11. O-O {[%clk 00:19:29]} {[%emt 00:00:16]}
Ne4 {[%clk 00:11:31]} {[%emt 00:01:50]} 12. Nxe4 {[%clk 00:19:32]} {[%emt
00:00:02]} Bxe4 {[%clk 00:11:35]} 13. Qf4 {[%clk 00:18:59]} {[%emt 00:00:38]}
Bg6 {[%clk 00:07:21]} {[%emt 00:04:20]} 14. Rad1 {[%clk 00:18:42]} {[%emt
00:00:23]} c6 {[%clk 00:07:24]} {[%emt 00:00:02]} 15. Ne5 {[%clk 00:18:06]}
{[%emt 00:00:40]} Nd7 {[%clk 00:05:49]} {[%emt 00:01:40]} 16. Nxg6 {[%clk
00:18:10]} {[%emt 00:00:02]} hxg6 {[%clk 00:05:32]} {[%emt 00:00:22]} 17. d5
{[%clk 00:18:13]} {[%emt 00:00:01]} cxd5 {[%clk 00:03:31]} {[%emt 00:02:05]} 18.
cxd5 {[%clk 00:18:17]} {[%emt 00:00:01]} Qf6 {[%emt 00:01:12]} 19. Qb4 {[%clk
00:17:15]} {[%emt 00:01:05]} Nb6 {[%clk 00:02:06]} {[%emt 00:00:25]} 20. d6
{[%clk 00:14:53]} {[%emt 00:02:27]} Rab8 {[%clk 00:00:56]} {[%emt 00:01:16]} 21.
Bf3 {[%clk 00:14:51]} {[%emt 00:00:07]} Rfd8 {[%clk 00:00:44]} {[%emt
00:00:17]} 22. Rd2 {[%clk 00:13:47]} {[%emt 00:01:09]} Rd7 {[%clk 00:00:47]}
{[%emt 00:00:02]} 23. Rfd1 {[%clk 00:12:01]} {[%emt 00:01:51]} Rbd8 {[%clk
00:00:51]} {[%emt 00:00:01]} 24. b3 {[%clk 00:11:45]} {[%emt 00:00:21]} Kf8
{[%clk 00:00:32]} {[%emt 00:00:25]} 25. h3 {[%clk 00:11:33]} {[%emt 00:00:17]}
Kg8 {[%clk 00:00:35]} {[%emt 00:00:02]} 26. a4 {[%clk 00:11:01]} {[%emt
00:00:37]} Qe5 {[%clk 00:00:36]} {[%emt 00:00:03]} 27. a5 {[%clk 00:09:47]}
{[%emt 00:01:19]} Nc8 {[%clk 00:00:38]} {[%emt 00:00:03]} 28. Bxb7 {[%clk
00:08:53]} {[%emt 00:00:59]} Rxd6 {[%clk 00:00:16]} {[%emt 00:00:27]} 29. Rxd6
{[%clk 00:08:12]} {[%emt 00:00:46]} Nxd6 {[%clk 00:00:08]} {[%emt 00:00:14]} 30.
Bf3 {[%clk 00:07:39]} {[%emt 00:00:37]} Kf8 {[%emt 00:00:07]} 31. a6 {[%clk
00:07:02]} {[%emt 00:00:41]} Ke7 {[%clk 00:00:12]} 32. Qd2 {[%clk 00:06:32]}
{[%emt 00:00:35]} Qc5 {[%clk 00:00:09]} {[%emt 00:00:07]} 33. b4 {[%clk
00:06:28]} {[%emt 00:00:10]} Qc7 {[%clk 00:00:08]} {[%emt 00:00:06]} 34. Qg5+
{[%clk 00:06:11]} {[%emt 00:00:22]} Ke8 {[%clk 00:00:11]} {[%emt 00:00:02]} 35.
b5 {[%clk 00:05:57]} {[%emt 00:00:19]} Qe7 {[%clk 00:00:12]} {[%emt 00:00:04]}
36. Bc6+ {[%clk 00:05:41]} {[%emt 00:00:21]} Kf8 {[%clk 00:00:13]} {[%emt
00:00:05]} 37. Qxe7+ {[%clk 00:05:29]} {[%emt 00:00:18]} Kxe7 {[%clk 00:00:16]}
{[%emt 00:00:01]} 38. b6 {[%clk 00:05:33]} 1-0

[Event "MCR rapid mládeže 2023 U16"]
[Site "Harachov, Czech Republic"]
[Date "2023.09.10"]
[Round "7.3"]
[White "Setina, Vaclav"]
[Black "Jasso, Matej"]
[Result "1-0"]
[TimeControl "20min+5s/move"]
[WhiteElo "1876"]
[BlackElo "1794"]

1. d4 {[%clk 00:20:09]} d5 {[%clk 00:19:55]} {[%emt 00:00:15]} 2. g3 {[%clk
00:20:13]} {[%emt 00:00:02]} Nf6 {[%clk 00:19:58]} {[%emt 00:00:02]} 3. Bg2
{[%clk 00:20:17]} e6 {[%clk 00:20:03]} 4. Nf3 {[%clk 00:20:20]} {[%emt
00:00:02]} Be7 {[%clk 00:20:07]} 5. O-O {[%clk 00:20:24]} {[%emt 00:00:02]} O-O
{[%clk 00:20:10]} {[%emt 00:00:02]} 6. b3 {[%clk 00:20:24]} {[%emt 00:00:05]}
b6 {[%clk 00:20:14]} 7. Nbd2 {[%clk 00:20:12]} {[%emt 00:00:16]} Bb7 {[%clk
00:20:08]} {[%emt 00:00:12]} 8. Ne5 {[%clk 00:20:15]} {[%emt 00:00:02]} c5
{[%clk 00:20:03]} {[%emt 00:00:09]} 9. Bb2 {[%clk 00:20:14]} {[%emt 00:00:06]}
Nc6 {[%clk 00:20:01]} {[%emt 00:00:07]} 10. Ndf3 {[%clk 00:19:52]} {[%emt
00:00:28]} Rc8 {[%clk 00:19:47]} {[%emt 00:00:18]} 11. e3 {[%clk 00:19:48]}
{[%emt 00:00:09]} cxd4 {[%clk 00:18:28]} {[%emt 00:01:25]} 12. exd4 {[%clk
00:19:01]} {[%emt 00:00:52]} Ne4 {[%clk 00:14:29]} {[%emt 00:04:03]} 13. Qe2
{[%clk 00:16:25]} {[%emt 00:02:42]} Nxe5 {[%clk 00:13:11]} {[%emt 00:01:23]} 14.
Nxe5 {[%clk 00:16:14]} {[%emt 00:00:15]} Nc3 {[%clk 00:10:19]} {[%emt
00:02:57]} 15. Qd3 {[%clk 00:13:54]} {[%emt 00:02:26]} Qc7 {[%clk 00:10:15]}
{[%emt 00:00:08]} 16. Rfe1 {[%clk 00:12:51]} {[%emt 00:01:08]} Ne4 {[%clk
00:09:01]} {[%emt 00:01:19]} 17. c4 {[%clk 00:11:59]} {[%emt 00:00:57]} dxc4
{[%clk 00:08:50]} {[%emt 00:00:17]} 18. bxc4 {[%clk 00:12:02]} {[%emt
00:00:02]} Nd6 {[%clk 00:07:52]} {[%emt 00:01:02]} 19. Rac1 {[%clk 00:11:33]}
{[%emt 00:00:34]} Ba6 {[%clk 00:07:07]} {[%emt 00:00:50]} 20. Bf1 {[%clk
00:10:17]} {[%emt 00:01:22]} Bf6 {[%clk 00:06:23]} {[%emt 00:00:48]} 21. Qa3
{[%clk 00:09:15]} {[%emt 00:01:07]} Bb7 {[%clk 00:04:53]} {[%emt 00:01:36]} 22.
c5 {[%clk 00:08:43]} {[%emt 00:00:37]} Bxe5 {[%clk 00:02:41]} {[%emt 00:02:17]}
23. Rxe5 {[%clk 00:07:07]} {[%emt 00:01:41]} Nf5 {[%clk 00:01:51]} {[%emt
00:00:54]} 24. c6 {[%clk 00:06:20]} {[%emt 00:00:52]} Ba8 {[%clk 00:00:35]}
{[%emt 00:01:20]} 25. Rxf5 {[%clk 00:05:19]} {[%emt 00:01:07]} exf5 {[%clk
00:00:37]} {[%emt 00:00:03]} 26. d5 {[%clk 00:05:23]} Rfd8 {[%clk 00:00:35]}
{[%emt 00:00:06]} 27. Qc3 {[%clk 00:05:26]} {[%emt 00:00:02]} f6 {[%clk
00:00:23]} {[%emt 00:00:17]} 28. Bg2 {[%clk 00:05:12]} {[%emt 00:00:19]} Qf7
{[%clk 00:00:08]} {[%emt 00:00:21]} 29. Qb3 {[%clk 00:04:29]} {[%emt 00:00:48]}
f4 {[%clk 00:00:12]} {[%emt 00:00:01]} 30. Ba3 {[%clk 00:04:12]} {[%emt
00:00:22]} Kh8 {[%clk 00:00:08]} {[%emt 00:00:09]} 31. d6 {[%clk 00:03:54]}
{[%emt 00:00:23]} Qg6 {[%clk 00:00:07]} {[%emt 00:00:06]} 32. d7 {[%clk
00:03:20]} {[%emt 00:00:38]} Rc7 {[%clk 00:00:10]} {[%emt 00:00:02]} 33. Qe6
{[%clk 00:02:26]} {[%emt 00:00:59]} Qd3 {[%clk 00:00:08]} {[%emt 00:00:07]} 34.
Qe8+ {[%clk 00:02:19]} {[%emt 00:00:12]} 1-0

[Event "MCR rapid mládeže 2023 U16"]
[Site "Harachov, Czech Republic"]
[Date "2023.09.10"]
[Round "7.4"]
[White "Krajicek, Matej"]
[Black "Popov, Roman"]
[Result "0-1"]
[TimeControl "20min+5s/move"]
[WhiteElo "1565"]
[BlackElo "1751"]

1. Nf3 {[%clk 00:20:04]} {[%emt 00:00:05]} d5 {[%clk 00:20:04]} {[%emt
00:00:06]} 2. e3 {[%clk 00:20:03]} {[%emt 00:00:06]} Nf6 {[%clk 00:20:01]}
{[%emt 00:00:08]} 3. b3 {[%clk 00:20:06]} {[%emt 00:00:02]} c5 {[%clk
00:19:26]} {[%emt 00:00:40]} 4. Bb2 {[%clk 00:20:01]} {[%emt 00:00:08]} Bf5
{[%clk 00:18:55]} {[%emt 00:00:38]} 5. d4 {[%clk 00:19:54]} {[%emt 00:00:12]}
e6 {[%clk 00:18:14]} {[%emt 00:00:45]} 6. Be2 {[%clk 00:19:01]} {[%emt
00:00:59]} Bd6 {[%clk 00:17:47]} {[%emt 00:00:32]} 7. O-O {[%clk 00:18:26]}
{[%emt 00:00:40]} O-O {[%clk 00:17:41]} {[%emt 00:00:11]} 8. dxc5 {[%clk
00:17:54]} {[%emt 00:00:37]} Bxc5 {[%clk 00:17:17]} {[%emt 00:00:29]} 9. c4
{[%clk 00:17:57]} {[%emt 00:00:02]} Be7 {[%clk 00:16:29]} {[%emt 00:00:53]} 10.
Nc3 {[%clk 00:16:47]} {[%emt 00:01:15]} dxc4 {[%clk 00:16:10]} {[%emt
00:00:24]} 11. Bxc4 {[%clk 00:16:12]} {[%emt 00:00:40]} Nc6 {[%clk 00:16:00]}
{[%emt 00:00:15]} 12. Qxd8 {[%clk 00:13:55]} {[%emt 00:02:22]} Rfxd8 {[%clk
00:15:57]} {[%emt 00:00:07]} 13. Rfd1 {[%clk 00:13:27]} {[%emt 00:00:34]} h6
{[%clk 00:14:38]} {[%emt 00:01:24]} 14. Nb5 {[%clk 00:09:10]} {[%emt 00:04:21]}
Bg4 {[%clk 00:08:45]} {[%emt 00:05:58]} 15. Nbd4 {[%clk 00:06:26]} {[%emt
00:02:49]} Nxd4 {[%clk 00:07:30]} {[%emt 00:01:20]} 16. Rxd4 {[%clk 00:04:38]}
{[%emt 00:01:53]} Bxf3 {[%clk 00:05:26]} {[%emt 00:02:09]} 17. gxf3 {[%clk
00:04:16]} {[%emt 00:00:26]} Bc5 {[%clk 00:04:51]} {[%emt 00:00:40]} 18. Rdd1
{[%clk 00:02:29]} {[%emt 00:01:52]} Be7 {[%clk 00:02:35]} {[%emt 00:02:21]} 19.
Kf1 {[%clk 00:02:08]} {[%emt 00:00:26]} Ne8 {[%clk 00:02:03]} {[%emt 00:00:37]}
20. Ke2 {[%clk 00:01:54]} {[%emt 00:00:19]} Bf6 {[%clk 00:01:34]} {[%emt
00:00:33]} 21. Bxf6 {[%clk 00:00:18]} {[%emt 00:01:42]} Nxf6 {[%clk 00:01:38]}
{[%emt 00:00:02]} 22. Rxd8+ {[%clk 00:00:13]} {[%emt 00:00:10]} Rxd8 {[%clk
00:01:42]} {[%emt 00:00:02]} 23. a4 {[%clk 00:00:15]} {[%emt 00:00:03]} Kf8
{[%clk 00:01:38]} {[%emt 00:00:08]} 24. Rd1 {[%clk 00:00:09]} {[%emt 00:00:10]}
Rxd1 {[%clk 00:01:20]} {[%emt 00:00:24]} 25. Kxd1 {[%clk 00:00:13]} {[%emt
00:00:01]} Ke7 {[%clk 00:01:24]} 26. Kd2 {[%clk 00:00:15]} {[%emt 00:00:04]}
Kd6 {[%clk 00:01:27]} {[%emt 00:00:02]} 27. Bd3 {[%clk 00:00:13]} {[%emt
00:00:06]} Nd7 {[%clk 00:00:57]} {[%emt 00:00:34]} 28. Kc3 {[%clk 00:00:08]}
{[%emt 00:00:11]} Ne5 {[%clk 00:00:42]} {[%emt 00:00:21]} 29. Be2 {[%clk
00:00:12]} a5 {[%clk 00:00:26]} {[%emt 00:00:20]} 30. b4 {[%clk 00:00:09]}
{[%emt 00:00:08]} axb4+ {[%clk 00:00:16]} {[%emt 00:00:16]} 31. Kxb4 {[%clk
00:00:11]} {[%emt 00:00:02]} Nc6+ {[%clk 00:00:14]} {[%emt 00:00:07]} 32. Kb5
{[%clk 00:00:08]} {[%emt 00:00:08]} Kc7 {[%clk 00:00:12]} {[%emt 00:00:07]} 33.
f4 {[%clk 00:00:09]} {[%emt 00:00:04]} Na7+ {[%clk 00:00:12]} {[%emt 00:00:05]}
34. Kc5 {[%clk 00:00:11]} {[%emt 00:00:03]} b6+ {[%clk 00:00:15]} {[%emt
00:00:02]} 35. Kc4 {[%clk 00:00:10]} {[%emt 00:00:06]} Nc6 {[%clk 00:00:11]}
{[%emt 00:00:09]} 36. Bf3 {[%clk 00:00:14]} {[%emt 00:00:01]} Ne7 {[%clk
00:00:09]} {[%emt 00:00:07]} 37. Kb5 {[%clk 00:00:06]} {[%emt 00:00:13]} Nc8
{[%clk 00:00:10]} {[%emt 00:00:04]} 38. a5 {[%clk 00:00:00]} {[%emt 00:00:06]}
0-1

[Event "MCR rapid mládeže 2023 U16"]
[Site "Harachov, Czech Republic"]
[Date "2023.09.10"]
[Round "7.5"]
[White "Novotny, Dominik"]
[Black "Hrbek, Jachym"]
[Result "1-0"]
[TimeControl "20min+5s/move"]
[WhiteElo "1707"]
[BlackElo "1769"]

1. e4 {[%clk 00:20:08]} c6 {[%clk 00:20:06]} {[%emt 00:00:05]} 2. d4 {[%clk
00:20:08]} {[%emt 00:00:05]} d5 {[%clk 00:20:08]} {[%emt 00:00:02]} 3. e5
{[%clk 00:20:03]} {[%emt 00:00:10]} Bf5 {[%clk 00:20:08]} {[%emt 00:00:05]} 4.
h4 {[%clk 00:20:06]} {[%emt 00:00:03]} h5 {[%clk 00:20:11]} {[%emt 00:00:01]} 5.
Bg5 {[%clk 00:20:09]} {[%emt 00:00:02]} Qb6 {[%clk 00:19:29]} {[%emt 00:00:48]}
6. Bd3 {[%clk 00:19:51]} {[%emt 00:00:23]} Qxb2 {[%clk 00:18:55]} {[%emt
00:00:39]} 7. Bxf5 {[%clk 00:17:31]} {[%emt 00:02:24]} Qxa1 {[%clk 00:18:55]}
{[%emt 00:00:05]} 8. e6 {[%clk 00:17:31]} {[%emt 00:00:05]} fxe6 {[%clk
00:15:14]} {[%emt 00:03:46]} 9. Bxe6 {[%clk 00:16:47]} {[%emt 00:00:49]} Nd7
{[%clk 00:15:05]} {[%emt 00:00:14]} 10. Nf3 {[%clk 00:15:41]} {[%emt 00:01:12]}
Ngf6 {[%clk 00:13:58]} {[%emt 00:01:12]} 11. O-O {[%clk 00:14:25]} {[%emt
00:01:21]} O-O-O {[%clk 00:13:06]} {[%emt 00:00:58]} 12. Ne5 {[%clk 00:13:17]}
{[%emt 00:01:12]} g6 {[%clk 00:11:17]} {[%emt 00:01:53]} 13. Nf7 {[%clk
00:09:47]} {[%emt 00:03:35]} Bg7 {[%clk 00:10:36]} {[%emt 00:00:46]} 14. Nxh8
{[%clk 00:08:40]} {[%emt 00:01:13]} Rxh8 {[%clk 00:09:34]} {[%emt 00:01:06]} 15.
Qd3 {[%clk 00:07:17]} {[%emt 00:01:29]} Ng4 {[%clk 00:07:09]} {[%emt 00:02:30]}
16. Nc3 {[%clk 00:06:22]} {[%emt 00:01:01]} Qb2 {[%clk 00:06:15]} {[%emt
00:00:59]} 17. Rb1 {[%clk 00:05:37]} {[%emt 00:00:50]} Qa3 {[%clk 00:06:18]}
{[%emt 00:00:02]} 18. Bxd7+ {[%clk 00:02:39]} {[%emt 00:03:03]} Kxd7 {[%clk
00:06:22]} {[%emt 00:00:01]} 19. Rxb7+ {[%clk 00:02:13]} {[%emt 00:00:31]} Kc8
{[%clk 00:06:23]} {[%emt 00:00:04]} 20. Rc7+ {[%clk 00:01:58]} {[%emt
00:00:20]} Kb8 {[%clk 00:04:32]} {[%emt 00:01:56]} 21. Rxc6 {[%clk 00:01:44]}
{[%emt 00:00:19]} Qb4 {[%clk 00:02:59]} {[%emt 00:01:38]} 22. Qb5+ {[%clk
00:00:21]} {[%emt 00:01:29]} Qxb5 23. Nxb5 {[%clk 00:00:25]} Nf6 {[%clk
00:02:28]} {[%emt 00:00:40]} 24. c3 {[%clk 00:00:23]} {[%emt 00:00:06]} Rf8
{[%clk 00:01:47]} {[%emt 00:00:46]} 25. Ra6 {[%clk 00:00:22]} {[%emt 00:00:07]}
Ne4 {[%clk 00:00:48]} {[%emt 00:01:03]} 26. Bxe7 {[%clk 00:00:11]} {[%emt
00:00:16]} Rf7 {[%clk 00:00:51]} {[%emt 00:00:02]} 27. Bd6+ {[%clk 00:00:13]}
{[%emt 00:00:04]} Kb7 {[%clk 00:00:54]} {[%emt 00:00:02]} 28. Rxa7+ {[%clk
00:00:15]} {[%emt 00:00:03]} 1-0

[Event "MCR rapid mládeže 2023 U16"]
[Site "Harachov, Czech Republic"]
[Date "2023.09.10"]
[Round "7.6"]
[White "Babula, Matej"]
[Black "Bludsky, Hynek"]
[Result "1-0"]
[TimeControl "20min+5s/move"]
[WhiteElo "1865"]
[BlackElo "1547"]

1. e4 {[%clk 00:20:08]} {[%emt 00:00:02]} c5 {[%clk 00:20:09]} {[%emt
00:00:02]} 2. Nf3 {[%clk 00:20:11]} {[%emt 00:00:02]} Nc6 {[%clk 00:20:12]}
{[%emt 00:00:02]} 3. d4 {[%clk 00:20:15]} {[%emt 00:00:02]} cxd4 {[%clk
00:20:15]} {[%emt 00:00:02]} 4. Nxd4 {[%clk 00:20:18]} {[%emt 00:00:01]} g6
{[%clk 00:20:19]} {[%emt 00:00:02]} 5. Nc3 {[%clk 00:20:20]} {[%emt 00:00:03]}
Bg7 {[%clk 00:20:22]} {[%emt 00:00:02]} 6. Be3 {[%clk 00:20:23]} {[%emt
00:00:02]} Nf6 {[%clk 00:20:25]} {[%emt 00:00:03]} 7. Bc4 {[%clk 00:20:24]}
{[%emt 00:00:04]} O-O {[%clk 00:20:27]} {[%emt 00:00:03]} 8. Bb3 {[%clk
00:20:27]} {[%emt 00:00:02]} Qa5 {[%clk 00:20:30]} {[%emt 00:00:02]} 9. O-O
{[%clk 00:20:28]} {[%emt 00:00:04]} d6 {[%clk 00:20:34]} {[%emt 00:00:02]} 10.
h3 {[%clk 00:20:31]} {[%emt 00:00:02]} Bd7 {[%clk 00:20:34]} {[%emt 00:00:05]}
11. Re1 {[%clk 00:20:07]} {[%emt 00:00:29]} Nxd4 {[%clk 00:20:23]} {[%emt
00:00:17]} 12. Bxd4 {[%clk 00:20:08]} {[%emt 00:00:03]} Bc6 {[%clk 00:20:27]}
13. Nd5 {[%clk 00:18:32]} {[%emt 00:01:43]} Bxd5 {[%clk 00:20:08]} {[%emt
00:00:23]} 14. exd5 {[%clk 00:18:32]} {[%emt 00:00:05]} Rfe8 {[%clk 00:19:45]}
{[%emt 00:00:28]} 15. Qf3 {[%clk 00:14:32]} {[%emt 00:04:05]} Nd7 {[%clk
00:18:36]} {[%emt 00:01:15]} 16. Bxg7 {[%clk 00:14:23]} {[%emt 00:00:14]} Kxg7
{[%clk 00:18:39]} {[%emt 00:00:02]} 17. c3 {[%clk 00:13:26]} {[%emt 00:01:02]}
Rac8 {[%clk 00:17:50]} {[%emt 00:00:54]} 18. Rad1 {[%clk 00:12:36]} {[%emt
00:00:55]} a6 {[%clk 00:17:26]} {[%emt 00:00:30]} 19. Rd4 {[%clk 00:12:03]}
{[%emt 00:00:37]} Ne5 {[%clk 00:15:24]} {[%emt 00:02:08]} 20. Qe3 {[%clk
00:11:25]} {[%emt 00:00:43]} Qc5 {[%clk 00:14:46]} {[%emt 00:00:43]} 21. Qd2
{[%clk 00:10:16]} {[%emt 00:01:13]} b5 {[%clk 00:14:31]} {[%emt 00:00:20]} 22.
Rh4 {[%clk 00:10:07]} {[%emt 00:00:14]} h5 {[%clk 00:14:04]} {[%emt 00:00:33]}
23. Rxh5 {[%clk 00:06:06]} {[%emt 00:04:06]} gxh5 {[%clk 00:12:36]} {[%emt
00:01:33]} 24. Rxe5 {[%clk 00:06:10]} {[%emt 00:00:01]} dxe5 {[%clk 00:10:29]}
{[%emt 00:02:11]} 25. Qg5+ {[%clk 00:06:13]} {[%emt 00:00:02]} Kf8 {[%clk
00:09:39]} {[%emt 00:00:56]} 26. Qh6+ {[%clk 00:05:52]} {[%emt 00:00:25]} Kg8
{[%clk 00:09:43]} 27. Bc2 {[%clk 00:05:10]} {[%emt 00:00:47]} e4 {[%clk
00:08:10]} {[%emt 00:01:39]} 28. Bxe4 {[%clk 00:04:20]} {[%emt 00:00:55]} f5
{[%clk 00:08:00]} {[%emt 00:00:14]} 29. Bxf5 {[%clk 00:02:58]} {[%emt
00:01:27]} Qxd5 {[%clk 00:07:53]} {[%emt 00:00:12]} 30. Be6+ {[%clk 00:02:43]}
{[%emt 00:00:20]} Qxe6 {[%clk 00:07:37]} {[%emt 00:00:22]} 31. Qxe6+ {[%clk
00:02:47]} {[%emt 00:00:01]} Kg7 {[%clk 00:07:21]} {[%emt 00:00:21]} 32. Qxa6
{[%clk 00:02:23]} {[%emt 00:00:30]} Rc5 {[%clk 00:04:54]} {[%emt 00:02:30]} 33.
Qa7 {[%clk 00:01:56]} {[%emt 00:00:32]} Rd5 {[%clk 00:04:25]} {[%emt 00:00:34]}
34. Qb7 {[%clk 00:01:51]} {[%emt 00:00:10]} Red8 {[%clk 00:03:36]} {[%emt
00:00:54]} 35. Qxe7+ {[%clk 00:01:52]} {[%emt 00:00:04]} Kg6 {[%clk 00:03:40]}
{[%emt 00:00:01]} 36. Qe6+ {[%clk 00:01:36]} {[%emt 00:00:21]} Kg7 {[%clk
00:03:33]} {[%emt 00:00:11]} 37. Kh2 {[%clk 00:01:23]} {[%emt 00:00:18]} R8d6
{[%clk 00:03:24]} {[%emt 00:00:14]} 38. Qe7+ {[%clk 00:01:25]} {[%emt
00:00:04]} Kg6 {[%clk 00:03:25]} {[%emt 00:00:04]} 39. Qe8+ {[%clk 00:01:24]}
{[%emt 00:00:06]} Kg5 {[%clk 00:02:33]} {[%emt 00:00:56]} 40. Qg8+ {[%clk
00:01:00]} {[%emt 00:00:29]} Kf5 {[%clk 00:02:21]} {[%emt 00:00:15]} 41. Qf7+
{[%clk 00:01:00]} {[%emt 00:00:07]} Kg5 {[%clk 00:02:05]} {[%emt 00:00:21]} 42.
h4+ {[%clk 00:00:58]} {[%emt 00:00:08]} Kh6 {[%clk 00:02:05]} {[%emt 00:00:05]}
43. g3 {[%clk 00:00:54]} {[%emt 00:00:09]} Rd2 {[%clk 00:01:38]} {[%emt
00:00:32]} 44. Kg2 {[%clk 00:00:56]} {[%emt 00:00:03]} R2d5 {[%clk 00:01:34]}
{[%emt 00:00:09]} 45. b3 {[%clk 00:00:46]} {[%emt 00:00:15]} Rd7 {[%clk
00:00:43]} {[%emt 00:00:56]} 46. Qf6+ {[%clk 00:00:46]} {[%emt 00:00:05]} Kh7
{[%clk 00:00:47]} {[%emt 00:00:01]} 47. c4 {[%clk 00:00:48]} {[%emt 00:00:03]}
bxc4 {[%clk 00:00:46]} {[%emt 00:00:05]} 48. bxc4 {[%clk 00:00:53]} Rc5 {[%clk
00:00:38]} {[%emt 00:00:14]} 49. a4 {[%clk 00:00:44]} {[%emt 00:00:14]} Rdc7
{[%clk 00:00:33]} {[%emt 00:00:10]} 50. Qe6 {[%clk 00:00:36]} {[%emt 00:00:13]}
Rxc4 {[%clk 00:00:33]} {[%emt 00:00:05]} 51. Qf5+ {[%clk 00:00:40]} Kh6 {[%clk
00:00:34]} {[%emt 00:00:05]} 52. Qg5+ {[%clk 00:00:37]} {[%emt 00:00:08]} Kh7
{[%clk 00:00:35]} {[%emt 00:00:04]} 53. Qxh5+ {[%clk 00:00:41]} Kg7 {[%clk
00:00:39]} 54. Qg5+ {[%clk 00:00:44]} {[%emt 00:00:03]} Kh7 {[%clk 00:00:42]}
{[%emt 00:00:02]} 55. a5 {[%clk 00:00:43]} {[%emt 00:00:06]} R4c5 {[%clk
00:00:43]} {[%emt 00:00:03]} 56. Qd2 {[%clk 00:00:47]} Ra7 {[%clk 00:00:19]}
{[%emt 00:00:30]} 57. Qd3+ {[%clk 00:00:49]} {[%emt 00:00:03]} Kg8 {[%clk
00:00:15]} {[%emt 00:00:08]} 58. Qg6+ {[%clk 00:00:40]} {[%emt 00:00:14]} Kh8
{[%clk 00:00:12]} {[%emt 00:00:07]} 59. Qf6+ {[%clk 00:00:44]} {[%emt
00:00:03]} Kh7 {[%clk 00:00:11]} {[%emt 00:00:06]} 60. a6 {[%clk 00:00:44]}
{[%emt 00:00:05]} Rcc7 {[%clk 00:00:11]} {[%emt 00:00:05]} 61. h5 {[%clk
00:00:44]} {[%emt 00:00:05]} Rf7 {[%clk 00:00:13]} {[%emt 00:00:03]} 62. Qg6+
{[%clk 00:00:47]} {[%emt 00:00:02]} Kh8 {[%clk 00:00:17]} 63. g4 {[%clk
00:00:44]} {[%emt 00:00:08]} Rg7 {[%clk 00:00:17]} {[%emt 00:00:06]} 64. Qh6+
{[%clk 00:00:45]} {[%emt 00:00:04]} Kg8 {[%clk 00:00:17]} {[%emt 00:00:05]} 65.
Kg3 {[%clk 00:00:47]} {[%emt 00:00:03]} Rh7 {[%clk 00:00:17]} {[%emt 00:00:05]}
66. Qe6+ {[%clk 00:00:50]} {[%emt 00:00:02]} Kh8 {[%clk 00:00:19]} {[%emt
00:00:03]} 67. f4 {[%clk 00:00:50]} {[%emt 00:00:05]} Rhe7 {[%clk 00:00:13]}
{[%emt 00:00:11]} 68. Qf6+ {[%clk 00:00:53]} {[%emt 00:00:02]} Kg8 {[%clk
00:00:17]} 69. g5 {[%clk 00:00:51]} {[%emt 00:00:07]} Re3+ {[%clk 00:00:15]}
{[%emt 00:00:08]} 70. Kg4 {[%clk 00:00:55]} {[%emt 00:00:01]} Ree7 {[%clk
00:00:16]} {[%emt 00:00:04]} 71. h6 {[%clk 00:00:48]} {[%emt 00:00:11]} Rf7
{[%clk 00:00:12]} {[%emt 00:00:10]} 72. Qe6 {[%clk 00:00:40]} {[%emt 00:00:12]}
Kh8 {[%clk 00:00:08]} {[%emt 00:00:10]} 73. g6 {[%clk 00:00:38]} {[%emt
00:00:07]} Rxf4+ {[%clk 00:00:10]} {[%emt 00:00:03]} 74. Kxf4 {[%clk 00:00:29]}
{[%emt 00:00:14]} Rf7+ {[%clk 00:00:14]} 75. gxf7 {[%emt 00:00:15]} 1-0